bitfinex-derivatives/quotes_ETHF0:USTF0_20241017
["timestamp","ask_amount","ask_price","bid_price","bid_amount"]
[1729140388148,0.38007,2631.5,2631.3,0.38008]
[1729140388354,0.95002,2631.9,2631.2,0.38011]
[1729140388851,0.95002,2631.9,2631.1,3.2078]
[1729140388852,0.3801,2631.3,2631.1,3.58791]
[1729140389048,0.38011,2631.2,2631.1,3.2078]
[1729140390840,0.3801,2631.3,2631.1,3.58791]
[1729140391040,0.38011,2631.3,2631.1,3.58792]
[1729140391257,0.38011,2631.3,2631.2,3.8008]
[1729140392444,0.38008,2631.5,2631.2,3.8008]
[1729140392747,3.2078,2631.7,2631.1,3.58792]
[1729140392944,0.38007,2631.5,2631.1,3.58792]
[1729140393140,3.2078,2631.7,2631.1,3.58792]
[1729140393448,0.38008,2631.4,2631.1,3.58792]
[1729140395453,0.38008,2631.4,2631.1,0.38012]
[1729140397546,0.38008,2631.4,2631.2,0.3801]
[1729140398847,3.2078,2631.7,2631.3,3.2078]
[1729140398848,3.58784,2631.7,2631.3,3.2078]
[1729140399059,3.58784,2631.7,2631.6,0.38005]
[1729140399060,3.2078,2631.7,2631.6,0.38005]
[1729140399658,0.38001,2631.9,2631.3,4.15802]
[1729140399859,0.38001,2631.9,2631.6,3.2078]
[1729140400060,0.8159,2632.0,2631.6,3.2078]
[1729140400360,0.38001,2631.9,2631.8,0.38001]
[1729140400563,1.1959,2632.0,2631.8,0.38001]
[1729140400767,0.38001,2631.9,2631.8,0.38001]
[1729140402164,0.8159,2632.0,2631.6,3.2078]
[1729140402358,0.38003,2631.8,2631.7,0.38003]
[1729140402564,3.05003,2631.8,2631.7,0.38003]
[1729140403660,2.67,2631.8,2631.7,0.38003]
[1729140403860,3.05002,2631.8,2631.7,0.38003]
[1729140405160,0.38005,2631.6,2631.5,3.2078]
[1729140405360,3.05005,2631.6,2631.5,3.2078]
[1729140406355,0.38007,2631.5,2631.4,0.38007]
[1729140406760,0.38008,2631.4,2631.3,0.38009]
[1729140407162,0.38007,2631.5,2631.4,0.38007]
[1729140407762,0.38006,2631.5,2631.3,0.38008]
[1729140408164,0.38006,2631.5,2631.1,3.2078]
[1729140408371,0.38006,2631.5,2631.4,0.38008]
[1729140409167,0.38008,2631.4,2631.3,0.38009]
[1729140409372,0.3855,2631.4,2631.1,3.2078]
[1729140409965,3.0555,2631.4,2631.1,3.2078]
[1729140410164,0.38011,2631.2,2631.1,3.2078]
[1729140410365,0.38011,2631.2,2631.1,3.58792]
[1729140411470,0.38011,2631.2,2631.1,0.38012]
[1729140411768,0.3911,2631.3,2630.9,3.2078]
[1729140412161,0.3911,2631.3,2631.2,0.38011]
[1729140412162,0.7712,2631.3,2631.2,0.38011]
[1729140413173,0.38011,2631.2,2631.1,0.38011]
[1729140415566,0.38011,2631.2,2631.1,3.21506607]
[1729140416068,0.38011,2631.2,2631.1,0.99521477]
[1729140416370,0.38011,2631.2,2631.1,1.37533477]
[1729140416567,0.38011,2631.2,2631.1,1.72450403]
[1729140417864,0.38011,2631.2,2631.1,1.72485402]
[1729140419365,0.38011,2631.2,2631.1,3.21593423]
[1729140419576,0.38011,2631.2,2631.1,1.34473402]
[1729140419770,0.38011,2631.2,2631.1,1.72485402]
[1729140420173,0.38011,2631.2,2631.1,1.34473402]
[1729140420779,0.77121,2631.3,2631.2,0.38011]
[1729140421072,0.77121,2631.3,2631.2,0.99654311]
[1729140421275,0.77121,2631.3,2631.2,1.37665311]
[1729140421468,0.77121,2631.3,2631.2,0.99654311]
[1729140422069,0.3855,2631.4,2631.2,0.99654311]
[1729140422270,0.76558,2631.4,2631.3,1.37663311]
[1729140422470,0.3855,2631.4,2631.2,0.99654311]
[1729140422666,0.38009,2631.3,2631.2,1.3766166]
[1729140422871,0.3855,2631.4,2631.2,1.34566259]
[1729140423077,0.76559,2631.4,2631.3,1.37660147]
[1729140423590,3.2078,2631.6,2631.1,0.99651147]
[1729140423775,1.7624,2632.0,2631.3,0.99651147]
[1729140423969,0.38005,2631.6,2631.5,0.38005]
[1729140424171,0.38004,2631.7,2631.6,0.38004]
[1729140424477,0.38005,2631.6,2631.5,0.38005]
[1729140425577,0.8124,2632.0,2631.5,4.20431147]
[1729140425775,0.8124,2632.0,2631.6,2.34198831]
[1729140425977,0.38003,2631.7,2631.6,1.37656147]
[1729140426175,0.38004,2631.7,2631.6,0.38005]
[1729140426574,0.8124,2632.0,2631.5,4.20431147]
[1729140426775,0.38003,2631.8,2631.7,0.38003]
[1729140427476,0.8124,2632.0,2631.6,0.99651147]
[1729140427680,0.38001,2631.9,2631.5,4.58436147]
[1729140427878,1.7624,2632.0,2631.5,4.58436147]
[1729140427879,0.38005,2631.7,2631.5,4.58436147]
[1729140428176,0.38005,2631.7,2631.6,0.38005]
[1729140428977,0.38005,2631.6,2631.5,3.58786]
[1729140429283,1.7624,2632.0,2631.5,3.58786]
[1729140429481,0.38005,2631.6,2631.5,3.58786]
[1729140429682,0.38005,2631.6,2631.5,3.2078]
[1729140429884,0.38005,2631.6,2631.3,0.99651147]
[1729140429885,2.67,2631.6,2631.3,0.99651147]
[1729140430182,2.67,2631.6,2631.1,1.37662147]
[1729140430183,0.3801,2631.3,2631.1,1.37662147]
[1729140430479,0.38011,2631.2,2631.1,1.87119021]
[1729140430776,0.399,2631.5,2631.1,3.21659372]
[1729140430777,0.4221,2631.4,2631.1,3.21659372]
[1729140431086,0.4221,2631.4,2631.2,0.99632858]
[1729140431281,0.80219,2631.4,2631.3,0.99632858]
[1729140431674,0.38009,2631.3,2631.2,0.99632858]
[1729140431880,0.4221,2631.4,2631.1,1.37643858]
[1729140432188,0.38011,2631.2,2631.1,1.37644858]
[1729140432478,0.38011,2631.2,2631.1,2.72183379]
[1729140432985,0.38011,2631.2,2631.1,0.99632858]
[1729140433185,0.38011,2631.2,2631.1,1.37644858]
[1729140433877,0.38011,2631.2,2631.1,0.99632858]
[1729140434999,3.6299,2631.4,2631.0,1.37645858]
[1729140435194,0.38012,2631.1,2631.0,0.99632858]
[1729140435898,0.38012,2631.1,2631.0,1.37646858]
[1729140436106,0.38012,2631.1,2631.0,0.99632858]
[1729140437005,0.38013,2631.1,2631.0,1.34527146]
[1729140437303,0.38013,2631.1,2631.0,0.99619443]
[1729140438606,0.38013,2631.1,2631.0,2.34127718]
[1729140438901,0.38013,2631.1,2631.0,0.99619443]
[1729140439107,0.38013,2631.1,2631.0,2.34127301]
[1729140439296,0.38013,2631.1,2631.0,0.99619443]
[1729140441904,0.95026,2631.3,2631.0,0.99600473]
[1729140442110,0.95026,2631.3,2631.0,0.99597195]
[1729140442415,0.38012,2631.1,2631.0,0.99597195]
[1729140443417,3.8008,2631.1,2630.8,0.99597195]
[1729140443722,0.41,2631.0,2630.7,4.20377195]
[1729140443917,1.61016,2630.8,2630.7,4.20377195]
[1729140444505,0.38016,2630.8,2630.7,4.58395195]
[1729140444815,1.61016,2630.8,2630.7,4.20377195]
[1729140445114,1.61016,2630.8,2630.7,3.2078]
[1729140445304,1.61016,2630.8,2630.7,4.20377195]
[1729140445507,1.61016,2630.8,2630.7,3.2078]
[1729140445909,0.38016,2630.8,2630.7,3.2078]
[1729140447112,0.77356,2630.8,2630.7,3.2078]
[1729140447512,0.38022,2630.4,2630.3,1.37621195]
[1729140447713,0.38022,2630.4,2630.3,0.38024]
[1729140448107,0.38022,2630.5,2630.2,0.99597195]
[1729140448308,0.38022,2630.4,2630.3,0.38023]
[1729140448510,0.4012,2630.7,2630.2,0.99597195]
[1729140448712,0.38022,2630.5,2630.2,0.99597195]
[1729140449314,0.38023,2630.4,2630.3,0.38023]
[1729140449513,2.67,2630.9,2630.3,0.99597195]
[1729140449721,0.3934,2630.8,2630.3,0.99597195]
[1729140449921,0.38019,2630.6,2630.5,0.3802]
[1729140450116,0.38019,2630.7,2630.4,0.38022]
[1729140450321,0.38019,2630.7,2630.6,0.38019]
[1729140450519,0.3802,2630.6,2630.5,0.3802]
[1729140452119,0.3934,2630.8,2630.3,0.99597195]
[1729140452320,0.77357,2630.8,2630.7,0.38018]
[1729140452714,0.38018,2630.7,2630.6,0.38018]
[1729140452917,0.77358,2630.8,2630.6,0.38019]
[1729140453224,0.77358,2630.8,2630.7,0.38018]
[1729140453919,0.38018,2630.7,2630.6,0.99597195]
[1729140454117,0.38019,2630.6,2630.5,1.37617195]
[1729140455625,0.38019,2630.6,2630.5,0.38021]
[1729140456919,0.38019,2630.7,2630.6,0.38019]
[1729140457318,0.3802,2630.6,2630.5,1.37617195]
[1729140457521,2.67,2630.9,2630.4,4.20377195]
[1729140457728,1.75636,2631.0,2630.7,0.99597195]
[1729140458027,0.38017,2630.8,2630.7,1.37615195]
[1729140458327,0.38017,2630.8,2630.7,0.38018]
[1729140458524,0.38018,2630.7,2630.6,1.37616195]
[1729140458924,0.38017,2630.8,2630.7,0.38017]
[1729140460426,0.806,2631.0,2630.6,0.99597195]
[1729140460621,1.18615,2631.0,2630.9,0.38015]
[1729140460832,0.38016,2630.9,2630.8,0.38016]
[1729140461329,0.806,2631.0,2630.7,0.3935]
[1729140461528,0.38016,2630.8,2630.7,0.77367]
[1729140462132,0.806,2631.0,2630.7,0.3935]
[1729140462327,0.38016,2630.9,2630.8,0.38016]
[1729140463131,2.03008,2631.8,2630.9,0.95038]
[1729140463430,0.76406,2631.5,2631.4,0.38008]
[1729140463626,0.38009,2631.3,2631.2,0.3801]
[1729140464332,0.384,2631.5,2631.1,0.3867]
[1729140464535,0.38009,2631.4,2631.2,0.3801]
[1729140464731,0.38009,2631.4,2631.3,0.38009]
[1729140465735,0.38009,2631.4,2631.2,0.38011]
[1729140466030,0.38009,2631.4,2631.3,0.38009]
[1729140466222,0.3801,2631.3,2631.2,0.38011]
[1729140467132,0.38008,2631.4,2631.3,0.38008]
[1729140467435,0.38009,2631.3,2631.2,0.7779]
[1729140468132,0.384,2631.5,2631.2,0.7779]
[1729140468438,0.38009,2631.3,2631.2,0.7779]
[1729140468734,0.38009,2631.3,2631.2,0.3801]
[1729140468931,2.67,2631.3,2631.1,0.99597195]
[1729140469135,2.67,2631.3,2630.9,0.80224]
[1729140469336,0.38013,2631.1,2630.9,0.4221]
[1729140469537,0.38013,2631.1,2630.9,0.80224]
[1729140470038,0.38012,2631.1,2630.9,0.80224]
[1729140470432,0.38014,2631.0,2630.9,0.4221]
[1729140470628,0.3841,2631.2,2630.8,0.38016]
[1729140471033,0.38015,2631.0,2630.8,0.38016]
[1729140471236,0.3955,2630.9,2630.8,0.38016]
[1729140473437,0.3955,2630.9,2630.8,1.37613195]
[1729140473635,0.3955,2630.9,2630.8,0.38016]
[1729140474545,0.77565,2630.9,2630.8,2.83544939]
[1729140474734,0.3955,2630.9,2630.8,0.38016]
[1729140474934,0.3955,2630.9,2630.8,1.37575327]
[1729140475341,0.3955,2630.9,2630.8,3.21586777]
[1729140475739,0.3955,2630.9,2630.8,3.21591702]
[1729140475947,0.3955,2630.9,2630.8,1.37595663]
[1729140476554,0.77565,2630.9,2630.8,1.37595663]
[1729140476756,0.3955,2630.9,2630.8,0.38016]
[1729140477441,0.3841,2631.2,2630.7,4.20359663]
[1729140477649,0.3841,2631.2,2630.9,0.38014]
[1729140477840,0.38015,2630.9,2630.7,4.58376663]
[1729140478044,0.3965,2630.8,2630.7,3.58797]
[1729140478344,0.3965,2630.8,2630.7,4.58376663]
[1729140478759,0.3965,2630.8,2630.7,3.58797]
[1729140479551,0.3965,2630.8,2630.7,4.58376663]
[1729140480154,0.3965,2630.8,2630.7,3.58797]
[1729140480453,0.4091,2631.5,2630.7,6.04383946]
[1729140480750,0.4217,2631.2,2630.9,4.20371186]
[1729140480951,0.4217,2631.2,2631.1,0.38012]
[1729140481350,0.4217,2631.2,2631.1,1.37603186]
[1729140481551,0.77569,2631.4,2631.2,0.38009]
[1729140481752,0.38009,2631.3,2631.2,0.38009]
[1729140482945,0.38009,2631.3,2631.2,1.37600186]
[1729140483643,1.19739,2631.4,2631.3,0.38009]
[1729140483848,0.8173,2631.4,2631.3,0.38009]
[1729140484250,0.8173,2631.4,2631.3,1.37600186]
[1729140484646,0.8173,2631.4,2631.3,0.38009]
[1729140484951,0.3956,2631.4,2631.3,1.37600186]
[1729140485353,0.38009,2631.3,2631.1,1.37603186]
[1729140485548,0.38009,2631.3,2631.1,0.99591186]
[1729140485749,0.38011,2631.2,2631.1,1.37603186]
[1729140485959,0.38011,2631.2,2631.1,0.99591186]
[1729140486161,0.38011,2631.2,2631.1,1.37603186]
[1729140486353,0.38011,2631.2,2631.1,0.99591186]
[1729140486553,0.78491,2631.2,2631.1,0.99591186]
[1729140486752,0.4048,2631.2,2631.1,0.38012]
[1729140487354,0.3956,2631.4,2631.1,4.79671186]
[1729140487549,0.3956,2631.4,2631.3,0.38009]
[1729140487550,0.77568,2631.4,2631.3,0.38009]
[1729140487859,0.3956,2631.4,2631.3,1.37600186]
[1729140488053,3.0748,2631.7,2631.3,0.99591186]
[1729140488256,0.38006,2631.5,2631.4,0.99591186]
[1729140488456,3.0748,2631.7,2631.3,0.99591186]
[1729140488654,2.67,2631.5,2631.2,0.99591186]
[1729140488955,2.67,2631.3,2630.9,0.99591186]
[1729140489156,0.38014,2631.0,2630.8,4.58387186]
[1729140489960,0.38015,2630.9,2630.8,3.2078]
[1729140491154,0.38018,2630.7,2630.6,0.99591186]
[1729140491361,2.67,2631.1,2630.6,2.3400739]
[1729140491660,0.38018,2630.8,2630.7,0.99591186]
[1729140491863,0.38014,2631.0,2630.6,0.99591186]
[1729140492062,0.812,2630.7,2630.6,0.99591186]
[1729140492764,0.812,2630.7,2630.6,1.37610186]
[1729140494158,0.4175,2630.9,2630.6,1.34423456]
[1729140494159,0.38016,2630.9,2630.6,1.34423456]
[1729140494359,0.38015,2630.9,2630.7,1.37573845]
[1729140495158,0.38015,2630.9,2630.7,0.99555845]
[1729140495352,0.38015,2630.9,2630.8,0.38016]
[1729140495562,3.2078,2631.4,2630.7,3.66555845]
[1729140495855,0.38011,2631.2,2631.1,0.38012]
[1729140496168,0.38011,2631.2,2631.1,1.37567845]
[1729140496360,0.38011,2631.2,2631.0,1.37568845]
[1729140496557,0.38011,2631.2,2631.1,0.99555845]
[1729140496958,0.38011,2631.2,2631.1,1.37567845]
[1729140497567,0.38011,2631.2,2631.1,0.99555845]
[1729140497768,0.38011,2631.2,2631.0,1.37568845]
[1729140497965,0.38011,2631.2,2631.0,0.38013]
[1729140498563,1.1939,2631.3,2631.1,0.38012]
[1729140498863,0.8138,2631.3,2631.2,0.38011]
[1729140499068,4.15786,2631.8,2631.2,0.38011]
[1729140499072,0.4025,2632.1,2631.4,0.9502]
[1729140499254,0.4025,2632.1,2631.7,0.38003]
[1729140499255,0.38001,2631.9,2631.7,0.38003]
[1729140499565,0.38003,2631.8,2631.6,4.58334993]
[1729140499769,0.4025,2632.1,2631.7,0.38002]
[1729140499956,0.37999,2632.0,2631.5,1.80660993]
[1729140500262,0.4025,2632.1,2631.6,3.2078]
[1729140500464,0.38,2632.0,2631.7,0.38002]
[1729140500668,0.38,2632.0,2631.7,0.38003]
[1729140500863,0.38,2632.0,2631.7,0.38002]
[1729140501065,0.4025,2632.1,2631.6,3.2078]
[1729140501263,0.37999,2632.0,2631.6,3.2078]
[1729140501460,0.4025,2632.1,2631.7,0.38003]
[1729140501665,0.38001,2631.9,2631.5,1.80660993]
[1729140501867,0.38,2632.0,2631.8,0.38002]
[1729140502369,0.38001,2631.9,2631.6,3.2078]
[1729140502570,0.38,2632.0,2631.8,0.38002]
[1729140503470,0.4025,2632.1,2631.6,3.2078]
[1729140503669,0.38001,2631.9,2631.7,0.38002]
[1729140504166,0.38001,2631.9,2631.6,3.2078]
[1729140504368,0.4025,2632.1,2631.6,3.2078]
[1729140504566,0.78249,2632.1,2631.9,0.38]
[1729140505267,0.4025,2632.1,2632.0,0.37999]
[1729140505470,0.3997,2632.2,2631.9,3.2078]
[1729140505765,0.3997,2632.2,2632.1,0.37998]
[1729140506668,0.7936,2632.5,2632.1,0.3838]
[1729140506877,0.7936,2632.5,2632.4,0.37993]
[1729140507172,0.7936,2632.5,2632.2,3.2078]
[1729140507472,0.7936,2632.5,2632.4,0.37993]
[1729140509369,0.76707,2632.9,2632.7,0.37988]
[1729140509577,1.18976,2633.0,2632.8,0.37987]
[1729140509770,1.18976,2633.0,2632.5,3.6132]
[1729140509968,1.18976,2633.0,2632.8,0.37986]
[1729140510165,1.18976,2633.0,2632.5,3.6132]
[1729140510367,0.8099,2633.0,2632.9,0.37986]
[1729140511266,0.8099,2633.0,2632.8,0.37986]
[1729140511464,0.37987,2632.9,2632.8,0.37986]
[1729140511664,0.8099,2633.0,2632.6,0.4209]
[1729140511869,0.37986,2632.9,2632.6,0.4209]
[1729140512073,0.37986,2632.9,2632.8,0.37988]
[1729140512276,0.37986,2632.9,2632.7,0.37988]
[1729140512470,0.37988,2632.8,2632.6,0.8008]
[1729140512668,0.37987,2632.9,2632.6,0.8008]
[1729140512967,0.37988,2632.8,2632.6,0.8008]
[1729140513466,0.8099,2633.0,2632.6,0.8008]
[1729140513665,0.37988,2632.8,2632.6,0.4209]
[1729140513866,0.8099,2633.0,2632.5,3.6132]
[1729140514074,0.8099,2633.0,2632.2,0.37996]
[1729140514075,0.37993,2632.5,2632.2,0.37996]
[1729140514268,0.7782,2632.4,2632.2,0.37996]
[1729140514771,0.7782,2632.4,2632.1,5.8778]
[1729140514772,0.37996,2632.3,2632.1,5.8778]
[1729140515465,0.37996,2632.2,2632.1,5.8778]
[1729140518061,0.37996,2632.2,2632.1,3.2078]
[1729140518673,0.37998,2632.1,2632.0,3.5941]
[1729140519276,0.37998,2632.1,2632.0,3.97409]
[1729140519663,0.37998,2632.1,2632.0,3.5941]
[1729140520067,0.37998,2632.1,2632.0,3.97409]
[1729140520373,0.7782,2632.4,2632.0,3.97409]
[1729140520567,0.7782,2632.4,2632.0,3.5941]
[1729140520768,0.37995,2632.3,2632.1,0.37996]
[1729140521370,0.37995,2632.3,2632.1,0.37998]
[1729140521678,0.37995,2632.3,2632.1,0.78708]
[1729140521971,0.37996,2632.3,2632.1,0.78708]
[1729140522276,0.37995,2632.3,2632.1,0.78708]
[1729140523566,0.37996,2632.2,2632.1,0.78708]
[1729140523874,0.7782,2632.4,2632.1,0.78708]
[1729140524869,0.37995,2632.3,2632.1,0.78708]
[1729140525169,0.37996,2632.2,2632.1,0.78708]
[1729140526180,0.37996,2632.2,2632.1,3.99488]
[1729140528777,0.37996,2632.2,2632.1,3.6149]
[1729140528980,1.15814,2632.4,2632.2,0.37995]
[1729140529373,1.15814,2632.4,2632.3,0.37995]
[1729140529575,1.15813,2632.4,2632.3,0.37995]
[1729140529779,0.94971,2632.8,2632.3,3.7992]
[1729140529967,0.37993,2632.5,2632.3,0.37994]
[1729140531379,0.7998,2632.7,2632.1,6.2849]
[1729140531580,0.37994,2632.4,2632.2,0.37995]
[1729140532181,0.7998,2632.7,2632.1,6.2849]
[1729140532483,0.37994,2632.4,2632.2,0.37995]
[1729140532676,0.37994,2632.4,2632.3,0.37995]
[1729140532876,0.37994,2632.4,2632.1,6.2849]
[1729140533177,0.37994,2632.4,2632.2,0.37995]
[1729140533675,0.37995,2632.3,2632.2,0.37996]
[1729140534684,1.74954,2632.7,2632.2,0.37996]
[1729140534983,0.37995,2632.3,2632.2,0.37996]
[1729140536677,1.74954,2632.7,2632.2,0.37996]
[1729140536988,1.74954,2632.7,2632.2,0.37995]
[1729140536989,0.37994,2632.4,2632.2,0.37995]
[1729140537687,0.37995,2632.3,2632.1,3.2078]
[1729140537983,0.37995,2632.3,2632.2,1.60996]
[1729140538279,0.37994,2632.4,2632.2,1.60996]
[1729140538585,0.37992,2632.5,2632.4,1.23]
[1729140541182,1.23,2632.6,2632.4,1.23]
[1729140541384,0.37991,2632.6,2632.5,1.23]
[1729140541581,0.7998,2632.7,2632.4,1.60992]
[1729140541582,0.37992,2632.5,2632.4,1.60992]
[1729140541884,0.37992,2632.6,2632.5,0.37992]
[1729140542079,2.0298,2632.7,2632.4,1.23]
[1729140542281,0.3799,2632.6,2632.4,1.60992]
[1729140542680,0.37992,2632.5,2632.4,1.60992]
[1729140543377,0.7998,2632.7,2632.4,1.23]
[1729140543578,1.17969,2632.7,2632.6,1.23]
[1729140543872,1.17969,2632.7,2632.4,0.37992]
[1729140543873,0.37992,2632.5,2632.4,1.23]
[1729140544795,1.23,2632.5,2632.1,5.43330993]
[1729140544981,0.37996,2632.2,2632.1,4.4378]
[1729140545177,0.37996,2632.2,2632.1,3.2078]
[1729140545492,0.37996,2632.2,2632.1,4.4378]
[1729140546088,0.78106,2632.2,2632.1,4.4378]
[1729140546783,2.01106,2632.2,2632.1,3.2078]
[1729140547584,5.81026,2632.2,2632.1,3.2078]
[1729140547785,4.58026,2632.2,2632.1,3.2078]
[1729140548390,0.38002,2631.8,2631.7,0.99570182]
[1729140548889,0.38003,2631.7,2631.6,0.99570182]
[1729140549090,0.76833,2631.7,2631.6,0.99570182]
[1729140550493,0.76833,2631.7,2631.6,1.37575182]
[1729140550784,0.76833,2631.7,2631.6,0.99570182]
[1729140551190,0.3883,2631.7,2631.6,0.38005]
[1729140551390,0.76833,2631.7,2631.6,0.38005]
[1729140552886,0.3883,2631.7,2631.6,0.38005]
[1729140553190,0.3883,2631.7,2631.6,3.05005]
[1729140553495,0.76833,2631.7,2631.6,3.05005]
[1729140554085,0.3883,2631.7,2631.6,3.05005]
[1729140554582,0.38002,2631.8,2631.6,6.47]
[1729140554787,0.38002,2631.8,2631.6,3.05004]
[1729140555381,0.38002,2631.8,2631.7,3.2078]
[1729140555996,0.3919,2632.1,2631.7,3.2078]
[1729140556197,0.38002,2631.8,2631.7,3.2078]
[1729140557293,0.3919,2632.1,2631.7,3.58783]
[1729140557592,0.38001,2631.9,2631.7,3.58783]
[1729140557790,0.3919,2632.1,2631.7,3.2078]
[1729140557989,0.38002,2631.8,2631.6,3.05004]
[1729140558387,0.38002,2631.8,2631.6,4.04574182]
[1729140558992,0.38003,2631.8,2631.6,4.04574182]
[1729140559199,0.38003,2631.8,2631.6,3.66570182]
[1729140559400,0.38003,2631.8,2631.6,4.04574182]
[1729140559700,0.38003,2631.8,2631.7,0.99570182]
[1729140560399,0.38003,2631.8,2631.6,4.04574182]
[1729140561196,0.3919,2632.1,2631.7,3.2078]
[1729140561400,0.38,2632.0,2631.7,4.20350182]
[1729140561601,0.38,2632.0,2631.8,0.38002]
[1729140562105,0.38,2632.0,2631.8,1.37572182]
[1729140562505,0.38,2632.0,2631.8,0.38002]
[1729140562808,0.77189,2632.1,2631.7,4.20350182]
[1729140563104,0.77188,2632.1,2632.0,0.37999]
[1729140563496,0.3919,2632.1,2631.8,4.07340182]
[1729140563696,0.3919,2632.1,2631.9,0.38]
[1729140563697,0.38,2632.0,2631.9,0.38]
[1729140564410,0.38001,2631.9,2631.8,4.45341182]
[1729140564609,0.3919,2632.1,2631.8,3.0777]
[1729140564803,0.38,2632.0,2631.9,0.37999]
[1729140565204,0.3919,2632.1,2631.8,3.0777]
[1729140565404,0.38001,2631.9,2631.8,3.45771]
[1729140565898,0.38001,2632.0,2631.9,0.38]
[1729140566103,0.3919,2632.1,2631.8,3.0777]
[1729140566305,0.38001,2631.9,2631.8,3.45771]
[1729140568812,0.3919,2632.1,2631.8,3.0777]
[1729140569111,0.3919,2632.1,2631.9,0.38001]
[1729140569112,0.38,2632.0,2631.9,0.38001]
[1729140569911,0.38,2632.0,2631.9,1.61001]
[1729140571115,0.3919,2632.1,2632.0,0.37999]
[1729140571302,0.77188,2632.1,2632.0,2.00629]
[1729140571705,0.3919,2632.1,2632.0,2.00629]
[1729140571909,0.37996,2632.2,2632.1,0.37996]
[1729140572111,0.37996,2632.2,2632.1,1.60996]
[1729140572809,0.4162,2632.3,2631.9,3.2078]
[1729140573012,0.38001,2631.9,2631.8,1.61001]
[1729140573209,0.38,2632.0,2631.9,0.38]
[1729140573411,1.23,2632.1,2631.9,1.23]
[1729140573612,0.38,2632.0,2631.9,0.38]
[1729140573809,0.38,2632.0,2631.8,1.37571182]
[1729140574013,0.38,2632.0,2631.9,1.23]
[1729140576719,0.37999,2632.1,2631.9,1.61]
[1729140576918,0.37999,2632.1,2632.0,1.23]
[1729140577421,0.37999,2632.1,2632.0,1.60999]
[1729140577621,1.23,2632.3,2632.1,0.37997]
[1729140577622,0.37996,2632.3,2632.1,0.37997]
[1729140577821,0.37995,2632.3,2632.2,1.23]
[1729140578018,1.23,2632.3,2632.0,4.20350182]
[1729140578214,1.23,2632.1,2631.8,2.22570182]
[1729140578515,0.38001,2631.9,2631.8,2.22570182]
[1729140578923,0.38001,2631.9,2631.8,1.23]
[1729140579123,0.38001,2631.9,2631.8,2.60572182]
[1729140579314,0.94989,2632.3,2631.8,3.94992507]
[1729140579520,0.37999,2632.0,2631.8,2.60571182]
[1729140581116,0.37999,2632.0,2631.9,0.99570182]
[1729140581522,0.37999,2632.0,2631.9,1.37571182]
[1729140581723,0.37999,2632.0,2631.9,0.99570182]
[1729140582220,0.37999,2632.0,2631.9,1.37571182]
[1729140583625,1.60999,2632.0,2631.9,0.99570182]
[1729140583825,1.60999,2632.0,2631.8,1.4932649]
[1729140583826,0.38001,2631.9,2631.8,0.99570182]
[1729140584125,0.38001,2631.9,2631.8,2.22570182]
[1729140585012,1.61001,2631.9,2631.8,0.99570182]
[1729140585216,1.23,2631.9,2631.7,0.99570182]
[1729140585617,1.61001,2631.9,2631.8,0.99570182]
[1729140587522,0.38001,2631.9,2631.8,2.22570182]
[1729140588125,0.38001,2631.9,2631.8,3.57082612]
[1729140588324,0.38001,2631.9,2631.8,5.7829243]
[1729140588521,0.38001,2631.9,2631.8,4.4378]
[1729140590622,0.38001,2631.9,2631.8,1.23]
[1729140590824,0.79081,2631.9,2631.8,4.4378]
[1729140591530,1.19211,2631.9,2631.8,4.4378]
[1729140595523,1.19211,2631.9,2631.8,7.27762688]
[1729140596527,1.19211,2631.9,2631.8,7.27770127]
[1729140597536,1.19211,2631.9,2631.8,4.06990127]
[1729140599229,1.19211,2631.9,2631.8,2.83990127]
[1729140599416,2.42211,2631.9,2631.8,2.83990127]
[1729140600731,1.19211,2631.9,2631.8,1.4932649]
[1729140600926,1.19211,2631.9,2631.8,2.84007549]
[1729140603321,2.42211,2631.9,2631.8,2.84007549]
[1729140603528,2.0421,2631.9,2631.6,4.20540224]
[1729140603720,0.38003,2631.7,2631.6,4.20540224]
[1729140603925,0.38003,2631.7,2631.6,5.5522691]
[1729140604128,0.38005,2631.6,2631.5,0.99760224]
[1729140604338,5.03,2631.6,2631.3,0.99760224]
[1729140604530,10.1579,2631.7,2631.0,2.39531987]
[1729140604531,1.23,2631.4,2631.0,1.8975649]
[1729140604831,1.61012,2631.1,2631.0,0.4043]
[1729140605031,1.23,2631.1,2631.0,0.78444]
[1729140605232,1.23,2631.1,2631.0,5.3389839]
[1729140605428,1.6312,2631.1,2631.0,4.98919144]
[1729140605829,1.6312,2631.1,2631.0,4.60905144]
[1729140606232,1.6312,2631.1,2631.0,4.98919144]
[1729140607537,1.6312,2631.1,2631.0,5.22224]
[1729140607723,1.6312,2631.1,2631.0,4.8421]
[1729140607927,1.6312,2631.1,2631.0,5.22224]
[1729140608234,2.01132,2631.1,2631.0,4.8421]
[1729140609136,1.6312,2631.1,2631.0,5.22224]
[1729140609331,1.6312,2631.1,2631.0,4.8421]
[1729140609530,1.6312,2631.1,2631.0,5.22224]
[1729140610633,1.6312,2631.1,2631.0,8.05927987]
[1729140611236,0.4012,2631.1,2631.0,8.05927987]
[1729140612032,0.4012,2631.1,2631.0,7.67913987]
[1729140612234,2.01132,2631.1,2631.0,6.82927987]
[1729140612434,2.01132,2631.1,2631.0,4.95587497]
[1729140612836,2.01132,2631.1,2631.0,3.99224]
[1729140613033,2.01132,2631.1,2631.0,4.9554742]
[1729140613429,2.01132,2631.1,2631.0,3.6121]
[1729140614639,2.01132,2631.1,2631.0,4.60686089]
[1729140614828,0.78132,2631.1,2631.0,6.21700089]
[1729140615031,0.78132,2631.1,2631.0,5.22224]